[Event "Titled Tuesday Blitz November 07 Early 2023"]
[White "Xiong, Jeffery"]
[Black "Zakhartsov, Vladimir"]
[WhiteFideId "2047640"]
[BlackFideId "4145097"]
[WhiteElo "3009"]
[BlackElo "2841"]
[Result "1-0"]
[Round "7"]
[TimeControl "180+1"]
[Date "2023.11.07"]
[WhiteClock "0:00:12"]
[BlackClock "0:00:03"]
[Board "8"]

1. d4 {[%clk 0:02:59]}  d5 {[%clk 0:02:59]} 2. c4 {[%clk 0:03:00]}  e6 {[%clk 0:02:56]} 3. Nf3 {[%clk 0:02:59]}  Nf6 {[%clk 0:02:55]} 4. Nc3 {[%clk 0:03:00]}  c5 {[%clk 0:02:55]} 5. cxd5 {[%clk 0:02:59]}  Nxd5 {[%clk 0:02:56]} 6. e4 {[%clk 0:03:00]}  Nxc3 {[%clk 0:02:56]} 7. bxc3 {[%clk 0:03:00]}  cxd4 {[%clk 0:02:57]} 8. cxd4 {[%clk 0:03:01]}  Bb4+ {[%clk 0:02:57]} 9. Bd2 {[%clk 0:03:02]}  Bxd2+ {[%clk 0:02:57]} 10. Qxd2 {[%clk 0:03:03]}  O-O {[%clk 0:02:57]} 11. Bc4 {[%clk 0:03:04]}  Nd7 {[%clk 0:02:55]} 12. O-O {[%clk 0:03:04]}  b6 {[%clk 0:02:56]} 13. Rfe1 {[%clk 0:03:05]}  Bb7 {[%clk 0:02:55]} 14. a4 {[%clk 0:03:05]}  Rc8 {[%clk 0:02:52]} 15. Bd3 {[%clk 0:02:54]}  Rc7 {[%clk 0:02:33]} 16. a5 {[%clk 0:02:52]}  Qb8 {[%clk 0:02:26]} 17. axb6 {[%clk 0:02:51]}  Nxb6 {[%clk 0:02:21]} 18. Qa5 {[%clk 0:02:48]}  Ba8 {[%clk 0:02:16]} 19. h4 {[%clk 0:02:26]}  h6 {[%clk 0:02:12]} 20. h5 {[%clk 0:01:50]}  Rd8 {[%clk 0:02:09]} 21. g4 {[%clk 0:01:36]}  Rcd7 {[%clk 0:02:07]} 22. Bb5 {[%clk 0:01:29]}  Qf4 {[%clk 0:01:53]} 23. Bxd7 {[%clk 0:01:23]}  Qxg4+ {[%clk 0:01:47]} 24. Kf1 {[%clk 0:01:21]}  Bxe4 {[%clk 0:01:25]} 25. Rxe4 {[%clk 0:01:18]}  Qxe4 {[%clk 0:01:20]} 26. Ne5 {[%clk 0:01:19]}  Qh1+ {[%clk 0:00:42]} 27. Ke2 {[%clk 0:01:19]}  Qe4+ {[%clk 0:00:42]} 28. Kf1 {[%clk 0:01:19]}  Qh1+ {[%clk 0:00:33]} 29. Ke2 {[%clk 0:01:20]}  Qxh5+ {[%clk 0:00:33]} 30. Kf1 {[%clk 0:01:06]}  Qh1+ {[%clk 0:00:27]} 31. Ke2 {[%clk 0:01:06]}  Qe4+ {[%clk 0:00:25]} 32. Kf1 {[%clk 0:01:07]}  Qh1+ {[%clk 0:00:15]} 33. Ke2 {[%clk 0:01:07]}  Qe4+ {[%clk 0:00:16]} 34. Kf1 {[%clk 0:01:07]}  Qxd4 {[%clk 0:00:17]} 35. Bc6 {[%clk 0:01:08]}  Rc8 {[%clk 0:00:13]} 36. Rc1 {[%clk 0:00:49]}  Qf4 {[%clk 0:00:09]} 37. Rc2 {[%clk 0:00:46]}  Nd5 {[%clk 0:00:07]} 38. Re2 {[%clk 0:00:31]}  Qc1+ {[%clk 0:00:05]} 39. Re1 {[%clk 0:00:31]}  Qg5 {[%clk 0:00:03]} 40. Bxd5 {[%clk 0:00:31]}  exd5 {[%clk 0:00:03]} 41. Qxa7 {[%clk 0:00:19]}  Qf5 {[%clk 0:00:03]} 42. Qd4 {[%clk 0:00:17]}  Qe6 {[%clk 0:00:02]} 43. Ng4 {[%clk 0:00:12]}  Qf5 {[%clk 0:00:02]} 44. Re5 {[%clk 0:00:03]}  Qg6 {[%clk 0:00:02]} 45. Rxd5 {[%clk 0:00:02]}  h5 {[%clk 0:00:02]} 46. Rd8+ {[%clk 0:00:02]}  Rxd8 {[%clk 0:00:03]} 47. Qxd8+ {[%clk 0:00:03]}  Kh7 {[%clk 0:00:04]} 48. Ne3 {[%clk 0:00:04]}  Qb1+ {[%clk 0:00:04]} 49. Kg2 {[%clk 0:00:04]}  Qg6+ {[%clk 0:00:05]} 50. Kf3 {[%clk 0:00:05]}  Qf6+ {[%clk 0:00:04]} 51. Qxf6 {[%clk 0:00:05]}  gxf6 {[%clk 0:00:05]} 52. Kf4 {[%clk 0:00:05]}  Kg6 {[%clk 0:00:06]} 53. Nf5 {[%clk 0:00:06]}  Kh7 {[%clk 0:00:05]} 54. Nh4 {[%clk 0:00:07]}  Kg7 {[%clk 0:00:05]} 55. Kf5 {[%clk 0:00:08]}  Kg8 {[%clk 0:00:05]} 56. Kxf6 {[%clk 0:00:08]}  Kf8 {[%clk 0:00:06]} 57. Kg5 {[%clk 0:00:08]}  Kg7 {[%clk 0:00:04]} 58. Kxh5 {[%clk 0:00:09]}  Kf6 {[%clk 0:00:05]} 59. Kg4 {[%clk 0:00:10]}  Ke5 {[%clk 0:00:05]} 60. Kf3 {[%clk 0:00:10]}  f5 {[%clk 0:00:05]} 61. Ng2 {[%clk 0:00:11]}  Ke6 {[%clk 0:00:05]} 62. Kf4 {[%clk 0:00:12]}  Kf6 {[%clk 0:00:03]} 63. Ne3 {[%clk 0:00:12]} 1-0


[Site "https://www.chess.com"]

[Event "Titled Tuesday Blitz November 07 Early 2023"]
[White "CrazyAdvenTures"]
[Black "Sethuraman, S.P."]
[BlackFideId "5021596"]
[WhiteElo "2826"]
[BlackElo "2906"]
[Result "0-1"]
[Round "7"]
[TimeControl "180+1"]
[Date "2023.11.07"]
[WhiteClock "0:00:45"]
[BlackClock "0:01:56"]
[Board "11"]

1. e4 {[%clk 0:03:00]}  e5 {[%clk 0:02:59]} 2. Nf3 {[%clk 0:02:58]}  Nc6 {[%clk 0:02:59]} 3. Bb5 {[%clk 0:02:57]}  a6 {[%clk 0:02:59]} 4. Ba4 {[%clk 0:02:57]}  Nf6 {[%clk 0:03:00]} 5. d3 {[%clk 0:02:57]}  b5 {[%clk 0:02:59]} 6. Bb3 {[%clk 0:02:57]}  Bc5 {[%clk 0:03:00]} 7. Nc3 {[%clk 0:02:58]}  d6 {[%clk 0:02:56]} 8. Nd5 {[%clk 0:02:56]}  h6 {[%clk 0:02:56]} 9. c3 {[%clk 0:02:56]}  Rb8 {[%clk 0:02:56]} 10. d4 {[%clk 0:02:50]}  Ba7 {[%clk 0:02:52]} 11. O-O {[%clk 0:02:50]}  O-O {[%clk 0:02:48]} 12. Be3 {[%clk 0:02:36]}  Nxd5 {[%clk 0:02:48]} 13. Bxd5 {[%clk 0:02:20]}  Ne7 {[%clk 0:02:47]} 14. dxe5 {[%clk 0:02:20]}  Bxe3 {[%clk 0:02:47]} 15. fxe3 {[%clk 0:02:21]}  Nxd5 {[%clk 0:02:42]} 16. exd5 {[%clk 0:02:18]}  dxe5 {[%clk 0:02:32]} 17. Nxe5 {[%clk 0:02:19]}  Bb7 {[%clk 0:02:32]} 18. e4 {[%clk 0:02:12]}  Qe7 {[%clk 0:02:21]} 19. Qd4 {[%clk 0:01:46]}  Rbd8 {[%clk 0:02:21]} 20. Rf5 {[%clk 0:01:25]}  g6 {[%clk 0:02:09]} 21. Rf4 {[%clk 0:01:05]}  c5 {[%clk 0:02:06]} 22. Nxg6 {[%clk 0:00:50]}  fxg6 {[%clk 0:02:06]} 23. Qe3 {[%clk 0:00:49]}  Bxd5 {[%clk 0:01:58]} 24. Rxf8+ {[%clk 0:00:47]}  Rxf8 {[%clk 0:01:57]} 25. Qxh6 {[%clk 0:00:45]}  Qxe4 {[%clk 0:01:56]} 0-1


[Site "https://www.chess.com"]

[Event "Titled Tuesday Blitz November 07 Early 2023"]
[White "Melkumyan, Hrant"]
[Black "Javakhadze, Zurab"]
[WhiteFideId "13302485"]
[BlackFideId "13603647"]
[WhiteElo "2896"]
[BlackElo "2800"]
[Result "1-0"]
[Round "7"]
[TimeControl "180+1"]
[Date "2023.11.07"]
[WhiteClock "0:01:19"]
[BlackClock "0:00:04"]
[Board "12"]

1. c4 {[%clk 0:03:00]}  e6 {[%clk 0:02:59]} 2. Nc3 {[%clk 0:02:59]}  d5 {[%clk 0:03:00]} 3. d4 {[%clk 0:03:00]}  Nf6 {[%clk 0:03:00]} 4. cxd5 {[%clk 0:02:53]}  exd5 {[%clk 0:03:00]} 5. Bg5 {[%clk 0:02:53]}  c6 {[%clk 0:03:00]} 6. e3 {[%clk 0:02:53]}  Bd6 {[%clk 0:02:56]} 7. Bd3 {[%clk 0:02:52]}  O-O {[%clk 0:02:54]} 8. Nge2 {[%clk 0:02:51]}  Re8 {[%clk 0:02:51]} 9. Qc2 {[%clk 0:02:50]}  h6 {[%clk 0:02:52]} 10. Bh4 {[%clk 0:02:47]}  a5 {[%clk 0:02:52]} 11. h3 {[%clk 0:02:45]}  Na6 {[%clk 0:02:52]} 12. a3 {[%clk 0:02:45]}  Nc7 {[%clk 0:02:52]} 13. g4 {[%clk 0:02:30]}  Ne6 {[%clk 0:02:42]} 14. f4 {[%clk 0:02:16]}  b6 {[%clk 0:01:55]} 15. Rg1 {[%clk 0:02:12]}  Bb7 {[%clk 0:01:53]} 16. g5 {[%clk 0:02:03]}  hxg5 {[%clk 0:01:46]} 17. fxg5 {[%clk 0:02:01]}  Nh5 {[%clk 0:01:42]} 18. O-O-O {[%clk 0:02:00]}  b5 {[%clk 0:01:34]} 19. Rdf1 {[%clk 0:01:52]}  Rf8 {[%clk 0:00:53]} 20. Rg4 {[%clk 0:01:39]}  g6 {[%clk 0:00:47]} 21. Bxg6 {[%clk 0:01:29]}  fxg6 {[%clk 0:00:46]} 22. Qxg6+ {[%clk 0:01:30]}  Neg7 {[%clk 0:00:38]} 23. Rf6 {[%clk 0:01:30]}  Be7 {[%clk 0:00:20]} 24. Qh6 {[%clk 0:01:24]}  Bc8 {[%clk 0:00:19]} 25. g6 {[%clk 0:01:20]}  Rxf6 {[%clk 0:00:04]} 26. Qh7+ {[%clk 0:01:18]}  Kf8 {[%clk 0:00:04]} 27. Qh8# {[%clk 0:01:19]} 1-0


[Site "https://www.chess.com"]

[Event "Titled Tuesday Blitz November 07 Early 2023"]
[White "Steinberg, Nitzan"]
[Black "Rakotomaharo, Fy Antenaina"]
[WhiteFideId "2801795"]
[BlackFideId "13100050"]
[WhiteElo "2895"]
[BlackElo "2738"]
[Result "1/2-1/2"]
[Round "7"]
[TimeControl "180+1"]
[Date "2023.11.07"]
[WhiteClock "0:00:03"]
[BlackClock "0:00:06"]
[Board "13"]

1. e4 {[%clk 0:03:00]}  e5 {[%clk 0:03:00]} 2. Nf3 {[%clk 0:03:01]}  Nf6 {[%clk 0:03:00]} 3. Nxe5 {[%clk 0:03:01]}  d6 {[%clk 0:03:01]} 4. Nf3 {[%clk 0:03:01]}  Nxe4 {[%clk 0:03:02]} 5. d3 {[%clk 0:03:02]}  Nf6 {[%clk 0:03:01]} 6. d4 {[%clk 0:03:02]}  Be7 {[%clk 0:02:50]} 7. Bd3 {[%clk 0:03:01]}  O-O {[%clk 0:02:51]} 8. h3 {[%clk 0:03:02]}  Re8 {[%clk 0:02:49]} 9. O-O {[%clk 0:03:02]}  Bf8 {[%clk 0:02:48]} 10. Nc3 {[%clk 0:03:02]}  b6 {[%clk 0:02:46]} 11. d5 {[%clk 0:02:56]}  Bb7 {[%clk 0:02:31]} 12. Bf4 {[%clk 0:02:49]}  Nbd7 {[%clk 0:02:29]} 13. Nd4 {[%clk 0:02:41]}  g6 {[%clk 0:02:17]} 14. Bc4 {[%clk 0:02:21]}  a6 {[%clk 0:02:12]} 15. a4 {[%clk 0:02:21]}  Bg7 {[%clk 0:02:02]} 16. Nc6 {[%clk 0:02:00]}  Bxc6 {[%clk 0:01:56]} 17. dxc6 {[%clk 0:02:01]}  Ne5 {[%clk 0:01:56]} 18. Bd5 {[%clk 0:01:55]}  Nxd5 {[%clk 0:01:47]} 19. Qxd5 {[%clk 0:01:54]}  Qf6 {[%clk 0:01:46]} 20. Bg3 {[%clk 0:01:50]}  g5 {[%clk 0:01:28]} 21. Rad1 {[%clk 0:01:41]}  Qg6 {[%clk 0:01:25]} 22. Rd2 {[%clk 0:01:34]}  Kh8 {[%clk 0:01:24]} 23. f4 {[%clk 0:01:30]}  gxf4 {[%clk 0:01:21]} 24. Bxf4 {[%clk 0:01:30]}  f5 {[%clk 0:01:12]} 25. Kh1 {[%clk 0:01:26]}  Re7 {[%clk 0:01:09]} 26. Rdf2 {[%clk 0:01:21]}  Rae8 {[%clk 0:01:07]} 27. Bh2 {[%clk 0:01:18]}  Rf7 {[%clk 0:00:36]} 28. Ne2 {[%clk 0:01:15]}  Qe6 {[%clk 0:00:21]} 29. Qxe6 {[%clk 0:01:15]}  Rxe6 {[%clk 0:00:22]} 30. Nd4 {[%clk 0:01:15]}  Ref6 {[%clk 0:00:21]} 31. b4 {[%clk 0:01:02]}  Kg8 {[%clk 0:00:09]} 32. b5 {[%clk 0:01:02]}  axb5 {[%clk 0:00:09]} 33. axb5 {[%clk 0:01:03]}  Nc4 {[%clk 0:00:06]} 34. Re2 {[%clk 0:00:41]}  f4 {[%clk 0:00:05]} 35. Re8+ {[%clk 0:00:31]}  Bf8 {[%clk 0:00:04]} 36. Ne6 {[%clk 0:00:25]}  Ne3 {[%clk 0:00:04]} 37. Rxf4 {[%clk 0:00:18]}  Nxc2 {[%clk 0:00:01]} 38. Rxf6 {[%clk 0:00:12]}  Rxf6 {[%clk 0:00:01]} 39. Rxf8+ {[%clk 0:00:07]}  Rxf8 {[%clk 0:00:01]} 40. Nxf8 {[%clk 0:00:07]}  Kxf8 {[%clk 0:00:02]} 41. Bxd6+ {[%clk 0:00:08]}  Ke8 {[%clk 0:00:03]} 42. Bxc7 {[%clk 0:00:08]}  Na3 {[%clk 0:00:02]} 43. Bxb6 {[%clk 0:00:08]}  Nxb5 {[%clk 0:00:03]} 44. Kh2 {[%clk 0:00:08]}  Ke7 {[%clk 0:00:02]} 45. c7 {[%clk 0:00:06]}  Kd7 {[%clk 0:00:03]} 46. Ba5 {[%clk 0:00:07]}  Na7 {[%clk 0:00:02]} 47. Kg3 {[%clk 0:00:07]}  Nc6 {[%clk 0:00:02]} 48. Bb6 {[%clk 0:00:07]}  Ne5 {[%clk 0:00:03]} 49. Kh4 {[%clk 0:00:06]}  Nc4 {[%clk 0:00:04]} 50. Bd4 {[%clk 0:00:03]}  Kxc7 {[%clk 0:00:04]} 51. Kh5 {[%clk 0:00:04]}  Kd6 {[%clk 0:00:05]} 52. Kh6 {[%clk 0:00:04]}  Kd5 {[%clk 0:00:05]} 53. Ba1 {[%clk 0:00:04]}  Ne3 {[%clk 0:00:06]} 54. g4 {[%clk 0:00:05]}  Ke4 {[%clk 0:00:06]} 55. Kxh7 {[%clk 0:00:05]}  Kf4 {[%clk 0:00:06]} 56. Be5+ {[%clk 0:00:01]}  Kxe5 {[%clk 0:00:06]} 57. g5 {[%clk 0:00:02]}  Nf5 {[%clk 0:00:05]} 58. g6 {[%clk 0:00:02]}  Kf4 {[%clk 0:00:06]} 59. h4 {[%clk 0:00:03]}  Kg4 {[%clk 0:00:05]} 60. g7 {[%clk 0:00:02]}  Nxg7 {[%clk 0:00:05]} 61. Kxg7 {[%clk 0:00:03]}  Kxh4 {[%clk 0:00:06]} 1/2-1/2


[Site "https://www.chess.com"]

[Event "Titled Tuesday Blitz November 07 Early 2023"]
[White "Malek, Jan"]
[Black "Kazakouski, Valery"]
[WhiteFideId "21864080"]
[BlackFideId "13507443"]
[WhiteElo "2717"]
[BlackElo "2888"]
[Result "0-1"]
[Round "7"]
[TimeControl "180+1"]
[Date "2023.11.07"]
[WhiteClock "0:00:00"]
[BlackClock "0:01:42"]
[Board "15"]

1. d4 {[%clk 0:03:00]}  Nf6 {[%clk 0:02:59]} 2. Nf3 {[%clk 0:03:01]}  c5 {[%clk 0:02:59]} 3. c3 {[%clk 0:02:57]}  e6 {[%clk 0:02:58]} 4. Bf4 {[%clk 0:02:56]}  b6 {[%clk 0:02:57]} 5. e3 {[%clk 0:02:55]}  Be7 {[%clk 0:02:57]} 6. Be2 {[%clk 0:02:54]}  O-O {[%clk 0:02:57]} 7. O-O {[%clk 0:02:55]}  h6 {[%clk 0:02:57]} 8. h3 {[%clk 0:02:54]}  d6 {[%clk 0:02:58]} 9. a4 {[%clk 0:02:53]}  Ba6 {[%clk 0:02:53]} 10. Bxa6 {[%clk 0:02:46]}  Nxa6 {[%clk 0:02:54]} 11. Na3 {[%clk 0:02:46]}  cxd4 {[%clk 0:02:51]} 12. exd4 {[%clk 0:02:46]}  Qd7 {[%clk 0:02:51]} 13. Nb5 {[%clk 0:02:43]}  Rfc8 {[%clk 0:02:47]} 14. Qd3 {[%clk 0:02:40]}  Nc7 {[%clk 0:02:43]} 15. Rfe1 {[%clk 0:02:34]}  Ncd5 {[%clk 0:02:42]} 16. Bh2 {[%clk 0:02:33]}  a6 {[%clk 0:02:42]} 17. Na3 {[%clk 0:02:21]}  Qxa4 {[%clk 0:02:41]} 18. c4 {[%clk 0:01:57]}  Nb4 {[%clk 0:02:41]} 19. Qc3 {[%clk 0:01:53]}  d5 {[%clk 0:02:41]} 20. b3 {[%clk 0:00:42]}  Qe8 {[%clk 0:02:41]} 21. Ne5 {[%clk 0:00:42]}  a5 {[%clk 0:02:34]} 22. Nc2 {[%clk 0:00:41]}  Nxc2 {[%clk 0:02:31]} 23. Qxc2 {[%clk 0:00:42]}  Nd7 {[%clk 0:02:25]} 24. Nf3 {[%clk 0:00:32]}  a4 {[%clk 0:02:20]} 25. Qd3 {[%clk 0:00:23]}  Nf6 {[%clk 0:02:13]} 26. Ne5 {[%clk 0:00:18]}  a3 {[%clk 0:02:04]} 27. Bf4 {[%clk 0:00:17]}  dxc4 {[%clk 0:01:53]} 28. bxc4 {[%clk 0:00:17]}  Qa4 {[%clk 0:01:51]} 29. d5 {[%clk 0:00:17]}  exd5 {[%clk 0:01:50]} 30. Qg3 {[%clk 0:00:06]}  Nh5 {[%clk 0:01:47]} 31. Qf3 {[%clk 0:00:06]}  Nxf4 {[%clk 0:01:44]} 32. Qxf4 {[%clk 0:00:07]}  Bf6 {[%clk 0:01:45]} 33. Rad1 {[%clk 0:00:03]}  a2 {[%clk 0:01:41]} 34. Ng4 {[%clk 0:00:01]}  a1=Q {[%clk 0:01:41]} 35. Rxa1 {[%clk 0:00:00]}  Bxa1 {[%clk 0:01:42]} 0-1


[Site "https://www.chess.com"]

[Event "Titled Tuesday Blitz November 07 Early 2023"]
[White "Kamsky, Gata"]
[Black "Arifarsky"]
[WhiteFideId "2000024"]
[WhiteElo "2856"]
[BlackElo "2698"]
[Result "1-0"]
[Round "7"]
[TimeControl "180+1"]
[Date "2023.11.07"]
[WhiteClock "0:00:09"]
[BlackClock "0:00:02"]
[Board "16"]

1. d4 {[%clk 0:02:49]}  d5 {[%clk 0:02:56]} 2. Bf4 {[%clk 0:02:48]}  Nf6 {[%clk 0:02:55]} 3. e3 {[%clk 0:02:48]}  c5 {[%clk 0:02:55]} 4. c3 {[%clk 0:02:48]}  cxd4 {[%clk 0:02:50]} 5. exd4 {[%clk 0:02:47]}  Nc6 {[%clk 0:02:50]} 6. Nd2 {[%clk 0:02:46]}  g6 {[%clk 0:02:41]} 7. Ngf3 {[%clk 0:02:35]}  Nh5 {[%clk 0:02:33]} 8. Be3 {[%clk 0:02:13]}  Bg7 {[%clk 0:02:26]} 9. Be2 {[%clk 0:01:58]}  Qc7 {[%clk 0:02:11]} 10. g3 {[%clk 0:01:56]}  O-O {[%clk 0:02:05]} 11. O-O {[%clk 0:01:55]}  f5 {[%clk 0:01:47]} 12. Nb3 {[%clk 0:01:10]}  f4 {[%clk 0:01:40]} 13. gxf4 {[%clk 0:00:41]}  Nxf4 {[%clk 0:01:31]} 14. Bxf4 {[%clk 0:00:41]}  Qxf4 {[%clk 0:01:30]} 15. Kh1 {[%clk 0:00:41]}  e5 {[%clk 0:01:17]} 16. dxe5 {[%clk 0:00:40]}  Nxe5 {[%clk 0:01:17]} 17. Qxd5+ {[%clk 0:00:36]}  Kh8 {[%clk 0:01:17]} 18. Nxe5 {[%clk 0:00:28]}  Bxe5 {[%clk 0:01:14]} 19. Qg2 {[%clk 0:00:28]}  Rf5 {[%clk 0:00:52]} 20. Bg4 {[%clk 0:00:11]}  Rg5 {[%clk 0:00:49]} 21. f3 {[%clk 0:00:11]}  h5 {[%clk 0:00:50]} 22. h4 {[%clk 0:00:11]}  hxg4 {[%clk 0:00:42]} 23. hxg5 {[%clk 0:00:12]}  g3 {[%clk 0:00:38]} 24. Rae1 {[%clk 0:00:10]}  Qh4+ {[%clk 0:00:23]} 25. Kg1 {[%clk 0:00:10]}  Bh3 {[%clk 0:00:23]} 26. Qe2 {[%clk 0:00:08]}  Bg7 {[%clk 0:00:17]} 27. f4 {[%clk 0:00:07]}  Rf8 {[%clk 0:00:15]} 28. Nc5 {[%clk 0:00:06]}  Bxf1 {[%clk 0:00:08]} 29. Rxf1 {[%clk 0:00:06]}  Rxf4 {[%clk 0:00:08]} 30. Rxf4 {[%clk 0:00:06]}  Qxf4 {[%clk 0:00:09]} 31. Ne4 {[%clk 0:00:07]}  Be5 {[%clk 0:00:07]} 32. Kg2 {[%clk 0:00:07]}  Kh7 {[%clk 0:00:07]} 33. Qf3 {[%clk 0:00:07]}  Kg7 {[%clk 0:00:03]} 34. Qxf4 {[%clk 0:00:07]}  Bxf4 {[%clk 0:00:03]} 35. Kf3 {[%clk 0:00:07]}  Be5 {[%clk 0:00:03]} 36. Nxg3 {[%clk 0:00:07]}  Kf7 {[%clk 0:00:04]} 37. Ne2 {[%clk 0:00:07]}  Ke6 {[%clk 0:00:04]} 38. Ke4 {[%clk 0:00:07]}  Bd6 {[%clk 0:00:05]} 39. c4 {[%clk 0:00:07]}  Be7 {[%clk 0:00:05]} 40. Nd4+ {[%clk 0:00:07]}  Kf7 {[%clk 0:00:05]} 41. Nf3 {[%clk 0:00:07]}  Bd6 {[%clk 0:00:05]} 42. Kd5 {[%clk 0:00:07]}  Be7 {[%clk 0:00:05]} 43. c5 {[%clk 0:00:07]}  Ke8 {[%clk 0:00:05]} 44. b4 {[%clk 0:00:08]}  Kd7 {[%clk 0:00:06]} 45. b5 {[%clk 0:00:08]}  a6 {[%clk 0:00:07]} 46. a4 {[%clk 0:00:09]}  axb5 {[%clk 0:00:07]} 47. axb5 {[%clk 0:00:09]}  Kc7 {[%clk 0:00:08]} 48. b6+ {[%clk 0:00:08]}  Kd7 {[%clk 0:00:08]} 49. Ne5+ {[%clk 0:00:08]}  Kc8 {[%clk 0:00:09]} 50. Nf7 {[%clk 0:00:08]}  Kd7 {[%clk 0:00:08]} 51. Nd6 {[%clk 0:00:08]}  Bxg5 {[%clk 0:00:08]} 52. Nxb7 {[%clk 0:00:08]}  Bf4 {[%clk 0:00:07]} 53. c6+ {[%clk 0:00:09]}  Kc8 {[%clk 0:00:02]} 54. Nd6+ {[%clk 0:00:09]} 1-0


[Site "https://www.chess.com"]

[Event "Titled Tuesday Blitz November 07 Early 2023"]
[White "Sychev, Klementy"]
[Black "Matinian, Nikita"]
[WhiteFideId "4114060"]
[BlackFideId "24129100"]
[WhiteElo "2849"]
[BlackElo "2677"]
[Result "1-0"]
[Round "7"]
[TimeControl "180+1"]
[Date "2023.11.07"]
[WhiteClock "0:00:20"]
[BlackClock "0:00:01"]
[Board "17"]

1. e4 {[%clk 0:03:00]}  d6 {[%clk 0:03:00]} 2. d4 {[%clk 0:03:00]}  g6 {[%clk 0:03:01]} 3. Nc3 {[%clk 0:03:00]}  a6 {[%clk 0:03:01]} 4. Be3 {[%clk 0:03:00]}  b5 {[%clk 0:03:02]} 5. g4 {[%clk 0:03:00]}  Bb7 {[%clk 0:03:01]} 6. Bg2 {[%clk 0:03:00]}  Nd7 {[%clk 0:02:59]} 7. h4 {[%clk 0:03:00]}  h6 {[%clk 0:02:59]} 8. a3 {[%clk 0:02:40]}  e6 {[%clk 0:02:57]} 9. f4 {[%clk 0:02:35]}  Ne7 {[%clk 0:02:53]} 10. h5 {[%clk 0:02:31]}  gxh5 {[%clk 0:02:48]} 11. Rxh5 {[%clk 0:02:24]}  Rg8 {[%clk 0:02:42]} 12. Bf3 {[%clk 0:02:18]}  Nf6 {[%clk 0:02:23]} 13. Rh3 {[%clk 0:02:16]}  Qd7 {[%clk 0:02:16]} 14. Qe2 {[%clk 0:01:59]}  d5 {[%clk 0:01:59]} 15. e5 {[%clk 0:01:54]}  Ne4 {[%clk 0:01:59]} 16. Qd3 {[%clk 0:01:48]}  Rc8 {[%clk 0:00:52]} 17. O-O-O {[%clk 0:01:39]}  c5 {[%clk 0:00:47]} 18. dxc5 {[%clk 0:01:39]}  Nxc5 {[%clk 0:00:44]} 19. Bxc5 {[%clk 0:01:39]}  Rxc5 {[%clk 0:00:43]} 20. Ne4 {[%clk 0:01:39]}  Qc6 {[%clk 0:00:26]} 21. Nf6+ {[%clk 0:01:25]}  Kd8 {[%clk 0:00:26]} 22. Nxg8 {[%clk 0:01:25]}  Nxg8 {[%clk 0:00:26]} 23. Qh7 {[%clk 0:01:08]}  Ne7 {[%clk 0:00:25]} 24. Kb1 {[%clk 0:00:53]}  Ke8 {[%clk 0:00:13]} 25. Ne2 {[%clk 0:00:50]}  Rc4 {[%clk 0:00:11]} 26. g5 {[%clk 0:00:45]}  Nf5 {[%clk 0:00:07]} 27. g6 {[%clk 0:00:41]}  fxg6 {[%clk 0:00:08]} 28. Qxg6+ {[%clk 0:00:41]}  Kd7 {[%clk 0:00:05]} 29. Bg4 {[%clk 0:00:37]}  Ne7 {[%clk 0:00:03]} 30. Qf7 {[%clk 0:00:29]}  b4 {[%clk 0:00:03]} 31. Qxf8 {[%clk 0:00:23]}  Rxc2 {[%clk 0:00:01]} 32. Nd4 {[%clk 0:00:20]} 1-0


[Site "https://www.chess.com"]